{"text_format":"3","workbook":"xlsx","n_sheets":4,"sheets":["ΕΝΑΡΞΗ","ΠΑΡΆΜΕΤΡΟΙ ΈΡΓΟΥ","ΛΕΠΤΟΜΕΡΕΙΕΣ ΕΡΓΟΥ","ΣΥΝΟΛΑ ΕΡΓΟΥ"],"not_rendered":{"charts":2,"defined_names":3,"pivot_tables":1},"read":"whole","date_system":"1900"}

{"sheet":"ΕΝΑΡΞΗ","index":0,"n_rows":7,"n_cols":2,"rows_kept":7}
[null,"ΣΧΕΤΙΚΑ ΜΕ ΑΥΤΟ ΤΟ ΠΡΟΤΥΠΟ"]
[null,"Παρακολουθήστε τις παραμέτρους του έργου, τις λεπτομέρειες του έργου και τα σύνολα του έργου σε αυτό το βιβλίο εργασίας παρακολούθησης σχεδιασμού εκδήλωσης."]
[null,"Εισαγάγετε πληροφορίες στο φύλλο εργασίας \"Παράμετροι έργου\" για να ενημερώσετε τα γραφήματα στηλών, καθώς και στο φύλλο εργασίας \"Λεπτομέρειες έργου\". Ο Συγκεντρωτικός Πίνακας στο φύλλο εργασίας \"Σύνολα έργου\" ενημερώνεται αυτόματα."]
[null,"Συμπληρώστε την επωνυμία της εταιρείας στο φύλλο εργασίας παραμέτρων και θα ενημερωθεί αυτόματα σε άλλα φύλλα εργασίας."]
[null,"Σημείωση:  "]
[null,"Στη στήλη A σε κάθε φύλλο εργασίας του βιβλίου εργασίας ΠΑΡΑΚΟΛΟΥΘΗΣΗ ΣΧΕΔΙΑΣΜΟΥ ΕΚΔΗΛΩΣΗΣ παρέχονται πρόσθετες οδηγίες. Αυτό το κείμενο είναι κρυφό σκόπιμα. Για να καταργήσετε το κείμενο, επιλέξτε τη στήλη A και, στη συνέχεια, πατήστε το πλήκτρο DELETE. Για να εμφανίσετε το κείμενο, επιλέξτε τη στήλη A και, στη συνέχεια, αλλάξτε το χρώμα γραμματοσειράς."]
[null,"Για να μάθετε περισσότερα για τους πίνακες στα φύλλα εργασίας, πατήστε το πλήκτρο SHIFT και, στη συνέχεια, πατήστε το F10 μέσα σε έναν πίνακα, επιλέξτε την επιλογή ΠΙΝΑΚΑΣ και, στη συνέχεια, επιλέξτε ΕΝΑΛΛΑΚΤΙΚΟ ΚΕΙΜΕΝΟ."]

{"sheet":"ΠΑΡΆΜΕΤΡΟΙ ΈΡΓΟΥ","index":1,"n_rows":19,"n_cols":9,"rows_kept":19,"merged":[[23,1,42,3]]}
[null,"Επωνυμία εταιρείας"]
[null,"Παρακολούθηση έργου διαχείρισης εκδήλωσης"]
[null,{"$f":"B1&\" Εμπιστευτικο\"","v":"Επωνυμία εταιρείας Εμπιστευτικο"}]
[null,"Τα σκιασμένα κελιά υπολογίζονται αυτόματα. Δεν χρειάζεται να εισαγάγετε τίποτα σε αυτά."]
[null,"ΤΥΠΟΣ ΕΡΓΟΥ","ΥΠΕΥΘΥΝΟΣ ΛΟΓΑΡΙΑΣΜΟΥ","ΔΙΑΧΕΙΡΙΣΤΗΣ ΕΡΓΟΥ","ΥΠΕΥΘΥΝΟΣ ΣΤΡΑΤΗΓΙΚΉΣ","ΕΙΔΙΚΌΣ ΣΧΕΔΊΑΣΗΣ","ΠΡΟΣΩΠΙΚΌ ΕΚΔΗΛΩΣΗΣ","ΔΙΟΙΚΗΤΙΚΟ ΠΡΟΣΩΠΙΚΟ","Άθροισμα"]
[null,"Ανάπτυξη στρατηγικής εκδήλωσης",{"v":0.2,"d":"20%"},{"v":0.1,"d":"10%"},{"v":0.6,"d":"60%"},{"v":0,"d":"0%"},{"v":0,"d":"0%"},{"v":0.1,"d":"10%"},{"$f":"SUM(Παράμετροι[[#This Row],[ΥΠΕΥΘΥΝΟΣ ΛΟΓΑΡΙΑΣΜΟΥ]:[ΔΙΟΙΚΗΤΙΚΟ ΠΡΟΣΩΠΙΚΟ]])","v":{"v":1,"d":"100%"}}]
[null,"Σχεδιασμός εκδήλωσης",{"v":0.2,"d":"20%"},{"v":0.5,"d":"50%"},{"v":0.1,"d":"10%"},{"v":0.1,"d":"10%"},{"v":0,"d":"0%"},{"v":0.1,"d":"10%"},{"$f":"SUM(Παράμετροι[[#This Row],[ΥΠΕΥΘΥΝΟΣ ΛΟΓΑΡΙΑΣΜΟΥ]:[ΔΙΟΙΚΗΤΙΚΟ ΠΡΟΣΩΠΙΚΟ]])","v":{"v":0.9999999999999999,"d":"100%"}}]
[null,"Σχεδίαση εκδήλωσης",{"v":0.2,"d":"20%"},{"v":0.2,"d":"20%"},{"v":0,"d":"0%"},{"v":0.5,"d":"50%"},{"v":0,"d":"0%"},{"v":0.1,"d":"10%"},{"$f":"SUM(Παράμετροι[[#This Row],[ΥΠΕΥΘΥΝΟΣ ΛΟΓΑΡΙΑΣΜΟΥ]:[ΔΙΟΙΚΗΤΙΚΟ ΠΡΟΣΩΠΙΚΟ]])","v":{"v":1,"d":"100%"}}]
[null,"Εφοδιασμός εκδήλωσης",{"v":0.2,"d":"20%"},{"v":0.6,"d":"60%"},{"v":0,"d":"0%"},{"v":0,"d":"0%"},{"v":0.1,"d":"10%"},{"v":0.1,"d":"10%"},{"$f":"SUM(Παράμετροι[[#This Row],[ΥΠΕΥΘΥΝΟΣ ΛΟΓΑΡΙΑΣΜΟΥ]:[ΔΙΟΙΚΗΤΙΚΟ ΠΡΟΣΩΠΙΚΟ]])","v":{"v":1,"d":"100%"}}]
[null,"Στελέχωση εκδήλωσης",{"v":0.2,"d":"20%"},{"v":0.1,"d":"10%"},{"v":0,"d":"0%"},{"v":0,"d":"0%"},{"v":0.6,"d":"60%"},{"v":0.1,"d":"10%"},{"$f":"SUM(Παράμετροι[[#This Row],[ΥΠΕΥΘΥΝΟΣ ΛΟΓΑΡΙΑΣΜΟΥ]:[ΔΙΟΙΚΗΤΙΚΟ ΠΡΟΣΩΠΙΚΟ]])","v":{"v":1,"d":"100%"}}]
[null,"Αξιολόγηση εκδήλωσης",{"v":0.2,"d":"20%"},{"v":0.2,"d":"20%"},{"v":0.2,"d":"20%"},{"v":0.2,"d":"20%"},{"v":0,"d":"0%"},{"v":0.2,"d":"20%"},{"$f":"SUM(Παράμετροι[[#This Row],[ΥΠΕΥΘΥΝΟΣ ΛΟΓΑΡΙΑΣΜΟΥ]:[ΔΙΟΙΚΗΤΙΚΟ ΠΡΟΣΩΠΙΚΟ]])","v":{"v":1,"d":"100%"}}]
[null,"Μεικτές τιμές",{"v":180,"d":"180 €"},{"v":120,"d":"120 €"},{"v":150,"d":"150 €"},{"v":100,"d":"100 €"},{"v":80,"d":"80 €"},{"v":60,"d":"60 €"}]
[]
[{"$nulls":5},"Ένα γράφημα στηλών που εμφανίζει τις προγραμματισμένες έναντι των πραγματικών ωρών βρίσκεται σε αυτό το κελί."]
[null,null,"ΥΠΕΥΘΥΝΟΣ ΛΟΓΑΡΙΑΣΜΟΥ","ΔΙΑΧΕΙΡΙΣΤΗΣ ΕΡΓΟΥ","ΥΠΕΥΘΥΝΟΣ ΣΤΡΑΤΗΓΙΚΉΣ","ΕΙΔΙΚΌΣ ΣΧΕΔΊΑΣΗΣ","ΠΡΟΣΩΠΙΚΌ ΕΚΔΗΛΩΣΗΣ","ΔΙΟΙΚΗΤΙΚΟ ΠΡΟΣΩΠΙΚΟ"]
[null,"ΠΡΟΓΡΑΜΜΑΤΙΣΜΈΝΟ ΚΌΣΤΟΣ",{"$f":"SUBTOTAL(109,Λεπτομέρειες_έργου[ΥΠΕΥΘΥΝΟΣ ΛΟΓΑΡΙΑΣΜΟΥ])","v":{"v":54000,"d":"54,000.00 €"}},{"$f":"SUBTOTAL(109,Λεπτομέρειες_έργου[ΔΙΑΧΕΙΡΙΣΤΗΣ ΕΡΓΟΥ])","v":{"v":52200,"d":"52,200.00 €"}},{"$f":"SUBTOTAL(109,Λεπτομέρειες_έργου[ΥΠΕΥΘΥΝΟΣ ΣΤΡΑΤΗΓΙΚΉΣ])","v":{"v":24000,"d":"24,000.00 €"}},{"$f":"SUBTOTAL(109,Λεπτομέρειες_έργου[ΕΙΔΙΚΌΣ ΣΧΕΔΊΑΣΗΣ])","v":{"v":29000,"d":"29,000.00 €"}},{"$f":"SUBTOTAL(109,Λεπτομέρειες_έργου[ΠΡΟΣΩΠΙΚΌ ΕΚΔΗΛΩΣΗΣ])","v":{"v":13200,"d":"13,200.00 €"}},{"$f":"SUBTOTAL(109,Λεπτομέρειες_έργου[ΔΙΟΙΚΗΤΙΚΟ ΠΡΟΣΩΠΙΚΟ])","v":{"v":9000,"d":"9,000.00 €"}}]
[null,"ΠΡΑΓΜΑΤΙΚΟ ΚΟΣΤΟΣ",{"$f":"SUBTOTAL(109,Λεπτομέρειες_έργου[[ΥΠΕΥΘΥΝΟΣ ΛΟΓΑΡΙΑΣΜΟΥ ]])","v":{"v":54360,"d":"54,360.00 €"}},{"$f":"SUBTOTAL(109,Λεπτομέρειες_έργου[[ΔΙΑΧΕΙΡΙΣΤΗΣ ΕΡΓΟΥ ]])","v":{"v":51540,"d":"51,540.00 €"}},{"$f":"SUBTOTAL(109,Λεπτομέρειες_έργου[[ΥΠΕΥΘΥΝΟΣ ΣΤΡΑΤΗΓΙΚΉΣ ]])","v":{"v":25650,"d":"25,650.00 €"}},{"$f":"SUBTOTAL(109,Λεπτομέρειες_έργου[[ΕΙΔΙΚΌΣ ΣΧΕΔΊΑΣΗΣ ]])","v":{"v":28900,"d":"28,900.00 €"}},{"$f":"SUBTOTAL(109,Λεπτομέρειες_έργου[[ΠΡΟΣΩΠΙΚΌ ΕΚΔΗΛΩΣΗΣ ]])","v":{"v":13400,"d":"13,400.00 €"}},{"$f":"SUBTOTAL(109,Λεπτομέρειες_έργου[[ΔΙΟΙΚΗΤΙΚΟ ΠΡΟΣΩΠΙΚΟ ]])","v":{"v":9060,"d":"9,060.00 €"}}]
[null,"ΠΡΟΓΡΑΜΜΑΤΙΣΜΈΝΕΣ ΏΡΕΣ",{"$f":"C16/$C$12","v":{"v":300,"d":"300.00"}},{"v":290,"d":"290.00"},{"v":133.33333333333334,"d":"133.33"},{"v":161.11111111111111,"d":"161.11"},{"v":73.33333333333333,"d":"73.33"},{"v":50,"d":"50.00"}]
[null,"ΠΡΑΓΜΑΤΙΚΕΣ ΩΡΕΣ",{"v":302,"d":"302.00"},{"v":286.3333333333333,"d":"286.33"},{"v":142.5,"d":"142.50"},{"v":160.55555555555554,"d":"160.56"},{"v":74.44444444444444,"d":"74.44"},{"v":50.333333333333336,"d":"50.33"}]

{"sheet":"ΛΕΠΤΟΜΕΡΕΙΕΣ ΕΡΓΟΥ","index":2,"n_rows":10,"n_cols":23,"rows_kept":10}
[null,{"$f":"'ΠΑΡΆΜΕΤΡΟΙ ΈΡΓΟΥ'!B1","v":"Επωνυμία εταιρείας"}]
[null,"Παρακολούθηση έργου διαχείρισης εκδήλωσης"]
[null,{"$f":"'ΠΑΡΆΜΕΤΡΟΙ ΈΡΓΟΥ'!B3","v":"Επωνυμία εταιρείας Εμπιστευτικο"}]
["Εισαγάγετε πληροφορίες στον πίνακα Λεπτομέρειες έργου, ξεκινώντας από το κελί στα δεξιά.\nΠΛΗΡΟΦΟΡΊΕΣ\nΓια να προσθέσετε μια γραμμή στον πίνακα στα δεξιά, επιλέξτε το πιο κάτω δεξιά κελί στο κύριο σώμα του πίνακα (όχι στη γραμμή συνόλων) και πατήστε το πλήκτρο Tab ή πατήστε τον συνδυασμό πλήκτρων SHIFT+F10 στο σημείο όπου θέλετε να εισαχθεί η γραμμή και επιλέξτε Εισαγωγή | Γραμμές πίνακα επάνω από/κάτω από.\nΒεβαιωθείτε ότι έχουν διαγραφεί όλες οι γραμμές που δεν χρησιμοποιούνται, καθώς ο Συγκεντρωτικός Πίνακας ΣΎΝΟΛΑ ΈΡΓΟΥ θα χρησιμοποιήσει όλα τα κελιά πινάκων και διαφορετικά θα επέστρεφε εσφαλμένα αποτελέσματα.","ΟΝΟΜΑ ΕΡΓΟΥ","ΤΥΠΟΣ ΕΡΓΟΥ","ΕΚΤΙΜΩΜΕΝΗ ΕΝΑΡΞΗ","ΕΚΤΙΜΏΜΕΝΗ ΛΉΞΗ","ΠΡΑΓΜΑΤΙΚΗ ΕΝΑΡΞΗ","ΠΡΑΓΜΑΤΙΚΉ ΛΉΞΗ","ΕΚΤΙΜΩΜΕΝΗ ΕΡΓΑΣΙΑ","ΠΡΑΓΜΑΤΙΚΉ ΕΡΓΑΣΊΑ","ΕΚΤΙΜΏΜΕΝΗ ΔΙΆΡΚΕΙΑ","ΠΡΑΓΜΑΤΙΚΗ ΔΙΑΡΚΕΙΑ","ΥΠΕΥΘΥΝΟΣ ΛΟΓΑΡΙΑΣΜΟΥ","ΔΙΑΧΕΙΡΙΣΤΗΣ ΕΡΓΟΥ","ΥΠΕΥΘΥΝΟΣ ΣΤΡΑΤΗΓΙΚΉΣ","ΕΙΔΙΚΌΣ ΣΧΕΔΊΑΣΗΣ","ΠΡΟΣΩΠΙΚΌ ΕΚΔΗΛΩΣΗΣ","ΔΙΟΙΚΗΤΙΚΟ ΠΡΟΣΩΠΙΚΟ","ΥΠΕΥΘΥΝΟΣ ΛΟΓΑΡΙΑΣΜΟΥ ","ΔΙΑΧΕΙΡΙΣΤΗΣ ΕΡΓΟΥ ","ΥΠΕΥΘΥΝΟΣ ΣΤΡΑΤΗΓΙΚΉΣ ","ΕΙΔΙΚΌΣ ΣΧΕΔΊΑΣΗΣ ","ΠΡΟΣΩΠΙΚΌ ΕΚΔΗΛΩΣΗΣ ","ΔΙΟΙΚΗΤΙΚΟ ΠΡΟΣΩΠΙΚΟ "]
[null,"Έργο 1","Ανάπτυξη στρατηγικής εκδήλωσης",{"$f":"DATE(YEAR(TODAY()),6,9)","v":"2022-06-09"},{"$f":" DATE(YEAR(TODAY()),8,7)","v":"2022-08-07"},{"$f":"DATE(YEAR(TODAY()),6,29)","v":"2022-06-29"},{"$f":"DATE(YEAR(TODAY()),9,3)","v":"2022-09-03"},200,220,{"$f":"DAYS360(Λεπτομέρειες_έργου[[#This Row],[ΕΚΤΙΜΩΜΕΝΗ ΕΝΑΡΞΗ]],Λεπτομέρειες_έργου[[#This Row],[ΕΚΤΙΜΏΜΕΝΗ ΛΉΞΗ]],FALSE)","v":58},{"$f":"DAYS360(Λεπτομέρειες_έργου[[#This Row],[ΠΡΑΓΜΑΤΙΚΗ ΕΝΑΡΞΗ]],Λεπτομέρειες_έργου[[#This Row],[ΠΡΑΓΜΑΤΙΚΉ ΛΉΞΗ]],FALSE)","v":64},{"$f":"INDEX(Παράμετροι[],MATCH(Λεπτομέρειες_έργου[[#This Row],[ΤΥΠΟΣ ΕΡΓΟΥ]],Παράμετροι[ΤΥΠΟΣ ΕΡΓΟΥ],0),MATCH(Λεπτομέρειες_έργου[[#Headers],[ΥΠΕΥΘΥΝΟΣ ΛΟΓΑΡΙΑΣΜΟΥ]],Παράμετροι[#Headers],0))*INDEX('ΠΑΡΆΜΕΤΡΟΙ ΈΡΓΟΥ'!$B$12:$H$12,1,MATCH(Λεπτομέρειες_έργου[[#Headers],[ΥΠΕΥΘΥΝΟΣ ΛΟΓΑΡΙΑΣΜΟΥ]],Παράμετροι[#Headers],0))*Λεπτομέρειες_έργου[[#This Row],[ΕΚΤΙΜΩΜΕΝΗ ΕΡΓΑΣΙΑ]]","v":{"v":7200,"d":"7,200 €"}},{"$f":"INDEX(Παράμετροι[],MATCH(Λεπτομέρειες_έργου[[#This Row],[ΤΥΠΟΣ ΕΡΓΟΥ]],Παράμετροι[ΤΥΠΟΣ ΕΡΓΟΥ],0),MATCH(Λεπτομέρειες_έργου[[#Headers],[ΔΙΑΧΕΙΡΙΣΤΗΣ ΕΡΓΟΥ]],Παράμετροι[#Headers],0))*INDEX('ΠΑΡΆΜΕΤΡΟΙ ΈΡΓΟΥ'!$B$12:$H$12,1,MATCH(Λεπτομέρειες_έργου[[#Headers],[ΔΙΑΧΕΙΡΙΣΤΗΣ ΕΡΓΟΥ]],Παράμετροι[#Headers],0))*Λεπτομέρειες_έργου[[#This Row],[ΕΚΤΙΜΩΜΕΝΗ ΕΡΓΑΣΙΑ]]","v":{"v":2400,"d":"2,400 €"}},{"$f":"INDEX(Παράμετροι[],MATCH(Λεπτομέρειες_έργου[[#This Row],[ΤΥΠΟΣ ΕΡΓΟΥ]],Παράμετροι[ΤΥΠΟΣ ΕΡΓΟΥ],0),MATCH(Λεπτομέρειες_έργου[[#Headers],[ΥΠΕΥΘΥΝΟΣ ΣΤΡΑΤΗΓΙΚΉΣ]],Παράμετροι[#Headers],0))*INDEX('ΠΑΡΆΜΕΤΡΟΙ ΈΡΓΟΥ'!$B$12:$H$12,1,MATCH(Λεπτομέρειες_έργου[[#Headers],[ΥΠΕΥΘΥΝΟΣ ΣΤΡΑΤΗΓΙΚΉΣ]],Παράμετροι[#Headers],0))*Λεπτομέρειες_έργου[[#This Row],[ΕΚΤΙΜΩΜΕΝΗ ΕΡΓΑΣΙΑ]]","v":{"v":18000,"d":"18,000 €"}},{"$f":"INDEX(Παράμετροι[],MATCH(Λεπτομέρειες_έργου[[#This Row],[ΤΥΠΟΣ ΕΡΓΟΥ]],Παράμετροι[ΤΥΠΟΣ ΕΡΓΟΥ],0),MATCH(Λεπτομέρειες_έργου[[#Headers],[ΕΙΔΙΚΌΣ ΣΧΕΔΊΑΣΗΣ]],Παράμετροι[#Headers],0))*INDEX('ΠΑΡΆΜΕΤΡΟΙ ΈΡΓΟΥ'!$B$12:$H$12,1,MATCH(Λεπτομέρειες_έργου[[#Headers],[ΕΙΔΙΚΌΣ ΣΧΕΔΊΑΣΗΣ]],Παράμετροι[#Headers],0))*Λεπτομέρειες_έργου[[#This Row],[ΕΚΤΙΜΩΜΕΝΗ ΕΡΓΑΣΙΑ]]","v":{"v":0,"d":"0 €"}},{"$f":"INDEX(Παράμετροι[],MATCH(Λεπτομέρειες_έργου[[#This Row],[ΤΥΠΟΣ ΕΡΓΟΥ]],Παράμετροι[ΤΥΠΟΣ ΕΡΓΟΥ],0),MATCH(Λεπτομέρειες_έργου[[#Headers],[ΠΡΟΣΩΠΙΚΌ ΕΚΔΗΛΩΣΗΣ]],Παράμετροι[#Headers],0))*INDEX('ΠΑΡΆΜΕΤΡΟΙ ΈΡΓΟΥ'!$B$12:$H$12,1,MATCH(Λεπτομέρειες_έργου[[#Headers],[ΠΡΟΣΩΠΙΚΌ ΕΚΔΗΛΩΣΗΣ]],Παράμετροι[#Headers],0))*Λεπτομέρειες_έργου[[#This Row],[ΕΚΤΙΜΩΜΕΝΗ ΕΡΓΑΣΙΑ]]","v":{"v":0,"d":"0 €"}},{"$f":"INDEX(Παράμετροι[],MATCH(Λεπτομέρειες_έργου[[#This Row],[ΤΥΠΟΣ ΕΡΓΟΥ]],Παράμετροι[ΤΥΠΟΣ ΕΡΓΟΥ],0),MATCH(Λεπτομέρειες_έργου[[#Headers],[ΔΙΟΙΚΗΤΙΚΟ ΠΡΟΣΩΠΙΚΟ]],Παράμετροι[#Headers],0))*INDEX('ΠΑΡΆΜΕΤΡΟΙ ΈΡΓΟΥ'!$B$12:$H$12,1,MATCH(Λεπτομέρειες_έργου[[#Headers],[ΔΙΟΙΚΗΤΙΚΟ ΠΡΟΣΩΠΙΚΟ]],Παράμετροι[#Headers],0))*Λεπτομέρειες_έργου[[#This Row],[ΕΚΤΙΜΩΜΕΝΗ ΕΡΓΑΣΙΑ]]","v":{"v":1200,"d":"1,200 €"}},{"$f":"INDEX(Παράμετροι[],MATCH(Λεπτομέρειες_έργου[[#This Row],[ΤΥΠΟΣ ΕΡΓΟΥ]],Παράμετροι[ΤΥΠΟΣ ΕΡΓΟΥ],0),MATCH(Λεπτομέρειες_έργου[[#Headers],[ΥΠΕΥΘΥΝΟΣ ΛΟΓΑΡΙΑΣΜΟΥ]],Παράμετροι[#Headers],0))*INDEX('ΠΑΡΆΜΕΤΡΟΙ ΈΡΓΟΥ'!$B$12:$H$12,1,MATCH(Λεπτομέρειες_έργου[[#Headers],[ΥΠΕΥΘΥΝΟΣ ΛΟΓΑΡΙΑΣΜΟΥ]],Παράμετροι[#Headers],0))*Λεπτομέρειες_έργου[[#This Row],[ΠΡΑΓΜΑΤΙΚΉ ΕΡΓΑΣΊΑ]]","v":{"v":7920,"d":"7,920 €"}},{"$f":"INDEX(Παράμετροι[],MATCH(Λεπτομέρειες_έργου[[#This Row],[ΤΥΠΟΣ ΕΡΓΟΥ]],Παράμετροι[ΤΥΠΟΣ ΕΡΓΟΥ],0),MATCH(Λεπτομέρειες_έργου[[#Headers],[ΔΙΑΧΕΙΡΙΣΤΗΣ ΕΡΓΟΥ]],Παράμετροι[#Headers],0))*INDEX('ΠΑΡΆΜΕΤΡΟΙ ΈΡΓΟΥ'!$B$12:$H$12,1,MATCH(Λεπτομέρειες_έργου[[#Headers],[ΔΙΑΧΕΙΡΙΣΤΗΣ ΕΡΓΟΥ]],Παράμετροι[#Headers],0))*Λεπτομέρειες_έργου[[#This Row],[ΠΡΑΓΜΑΤΙΚΉ ΕΡΓΑΣΊΑ]]","v":{"v":2640,"d":"2,640 €"}},{"$f":"INDEX(Παράμετροι[],MATCH(Λεπτομέρειες_έργου[[#This Row],[ΤΥΠΟΣ ΕΡΓΟΥ]],Παράμετροι[ΤΥΠΟΣ ΕΡΓΟΥ],0),MATCH(Λεπτομέρειες_έργου[[#Headers],[ΥΠΕΥΘΥΝΟΣ ΣΤΡΑΤΗΓΙΚΉΣ]],Παράμετροι[#Headers],0))*INDEX('ΠΑΡΆΜΕΤΡΟΙ ΈΡΓΟΥ'!$B$12:$H$12,1,MATCH(Λεπτομέρειες_έργου[[#Headers],[ΥΠΕΥΘΥΝΟΣ ΣΤΡΑΤΗΓΙΚΉΣ]],Παράμετροι[#Headers],0))*Λεπτομέρειες_έργου[[#This Row],[ΠΡΑΓΜΑΤΙΚΉ ΕΡΓΑΣΊΑ]]","v":{"v":19800,"d":"19,800 €"}},{"$f":"INDEX(Παράμετροι[],MATCH(Λεπτομέρειες_έργου[[#This Row],[ΤΥΠΟΣ ΕΡΓΟΥ]],Παράμετροι[ΤΥΠΟΣ ΕΡΓΟΥ],0),MATCH(Λεπτομέρειες_έργου[[#Headers],[ΕΙΔΙΚΌΣ ΣΧΕΔΊΑΣΗΣ]],Παράμετροι[#Headers],0))*INDEX('ΠΑΡΆΜΕΤΡΟΙ ΈΡΓΟΥ'!$B$12:$H$12,1,MATCH(Λεπτομέρειες_έργου[[#Headers],[ΕΙΔΙΚΌΣ ΣΧΕΔΊΑΣΗΣ]],Παράμετροι[#Headers],0))*Λεπτομέρειες_έργου[[#This Row],[ΠΡΑΓΜΑΤΙΚΉ ΕΡΓΑΣΊΑ]]","v":{"v":0,"d":"0 €"}},{"$f":"INDEX(Παράμετροι[],MATCH(Λεπτομέρειες_έργου[[#This Row],[ΤΥΠΟΣ ΕΡΓΟΥ]],Παράμετροι[ΤΥΠΟΣ ΕΡΓΟΥ],0),MATCH(Λεπτομέρειες_έργου[[#Headers],[ΠΡΟΣΩΠΙΚΌ ΕΚΔΗΛΩΣΗΣ]],Παράμετροι[#Headers],0))*INDEX('ΠΑΡΆΜΕΤΡΟΙ ΈΡΓΟΥ'!$B$12:$H$12,1,MATCH(Λεπτομέρειες_έργου[[#Headers],[ΠΡΟΣΩΠΙΚΌ ΕΚΔΗΛΩΣΗΣ]],Παράμετροι[#Headers],0))*Λεπτομέρειες_έργου[[#This Row],[ΠΡΑΓΜΑΤΙΚΉ ΕΡΓΑΣΊΑ]]","v":{"v":0,"d":"0 €"}},{"$f":"INDEX(Παράμετροι[],MATCH(Λεπτομέρειες_έργου[[#This Row],[ΤΥΠΟΣ ΕΡΓΟΥ]],Παράμετροι[ΤΥΠΟΣ ΕΡΓΟΥ],0),MATCH(Λεπτομέρειες_έργου[[#Headers],[ΔΙΟΙΚΗΤΙΚΟ ΠΡΟΣΩΠΙΚΟ]],Παράμετροι[#Headers],0))*INDEX('ΠΑΡΆΜΕΤΡΟΙ ΈΡΓΟΥ'!$B$12:$H$12,1,MATCH(Λεπτομέρειες_έργου[[#Headers],[ΔΙΟΙΚΗΤΙΚΟ ΠΡΟΣΩΠΙΚΟ]],Παράμετροι[#Headers],0))*Λεπτομέρειες_έργου[[#This Row],[ΠΡΑΓΜΑΤΙΚΉ ΕΡΓΑΣΊΑ]]","v":{"v":1320,"d":"1,320 €"}}]
[null,"Έργο 2","Σχεδιασμός εκδήλωσης",{"$f":"DATE(YEAR(TODAY())+1,6,25)","v":"2023-06-25"},{"$f":"DATE(YEAR(TODAY())+1,7,27)","v":"2023-07-27"},{"$f":"DATE(YEAR(TODAY()),7,15)","v":"2022-07-15"},{"$f":"DATE(YEAR(TODAY())+1,8,25)","v":"2023-08-25"},400,390,{"$f":"DAYS360(Λεπτομέρειες_έργου[[#This Row],[ΕΚΤΙΜΩΜΕΝΗ ΕΝΑΡΞΗ]],Λεπτομέρειες_έργου[[#This Row],[ΕΚΤΙΜΏΜΕΝΗ ΛΉΞΗ]],FALSE)","v":32},{"$f":"DAYS360(Λεπτομέρειες_έργου[[#This Row],[ΠΡΑΓΜΑΤΙΚΗ ΕΝΑΡΞΗ]],Λεπτομέρειες_έργου[[#This Row],[ΠΡΑΓΜΑΤΙΚΉ ΛΉΞΗ]],FALSE)","v":400},{"$f":"INDEX(Παράμετροι[],MATCH(Λεπτομέρειες_έργου[[#This Row],[ΤΥΠΟΣ ΕΡΓΟΥ]],Παράμετροι[ΤΥΠΟΣ ΕΡΓΟΥ],0),MATCH(Λεπτομέρειες_έργου[[#Headers],[ΥΠΕΥΘΥΝΟΣ ΛΟΓΑΡΙΑΣΜΟΥ]],Παράμετροι[#Headers],0))*INDEX('ΠΑΡΆΜΕΤΡΟΙ ΈΡΓΟΥ'!$B$12:$H$12,1,MATCH(Λεπτομέρειες_έργου[[#Headers],[ΥΠΕΥΘΥΝΟΣ ΛΟΓΑΡΙΑΣΜΟΥ]],Παράμετροι[#Headers],0))*Λεπτομέρειες_έργου[[#This Row],[ΕΚΤΙΜΩΜΕΝΗ ΕΡΓΑΣΙΑ]]","v":{"v":14400,"d":"14,400 €"}},{"$f":"INDEX(Παράμετροι[],MATCH(Λεπτομέρειες_έργου[[#This Row],[ΤΥΠΟΣ ΕΡΓΟΥ]],Παράμετροι[ΤΥΠΟΣ ΕΡΓΟΥ],0),MATCH(Λεπτομέρειες_έργου[[#Headers],[ΔΙΑΧΕΙΡΙΣΤΗΣ ΕΡΓΟΥ]],Παράμετροι[#Headers],0))*INDEX('ΠΑΡΆΜΕΤΡΟΙ ΈΡΓΟΥ'!$B$12:$H$12,1,MATCH(Λεπτομέρειες_έργου[[#Headers],[ΔΙΑΧΕΙΡΙΣΤΗΣ ΕΡΓΟΥ]],Παράμετροι[#Headers],0))*Λεπτομέρειες_έργου[[#This Row],[ΕΚΤΙΜΩΜΕΝΗ ΕΡΓΑΣΙΑ]]","v":{"v":24000,"d":"24,000 €"}},{"$f":"INDEX(Παράμετροι[],MATCH(Λεπτομέρειες_έργου[[#This Row],[ΤΥΠΟΣ ΕΡΓΟΥ]],Παράμετροι[ΤΥΠΟΣ ΕΡΓΟΥ],0),MATCH(Λεπτομέρειες_έργου[[#Headers],[ΥΠΕΥΘΥΝΟΣ ΣΤΡΑΤΗΓΙΚΉΣ]],Παράμετροι[#Headers],0))*INDEX('ΠΑΡΆΜΕΤΡΟΙ ΈΡΓΟΥ'!$B$12:$H$12,1,MATCH(Λεπτομέρειες_έργου[[#Headers],[ΥΠΕΥΘΥΝΟΣ ΣΤΡΑΤΗΓΙΚΉΣ]],Παράμετροι[#Headers],0))*Λεπτομέρειες_έργου[[#This Row],[ΕΚΤΙΜΩΜΕΝΗ ΕΡΓΑΣΙΑ]]","v":{"v":6000,"d":"6,000 €"}},{"$f":"INDEX(Παράμετροι[],MATCH(Λεπτομέρειες_έργου[[#This Row],[ΤΥΠΟΣ ΕΡΓΟΥ]],Παράμετροι[ΤΥΠΟΣ ΕΡΓΟΥ],0),MATCH(Λεπτομέρειες_έργου[[#Headers],[ΕΙΔΙΚΌΣ ΣΧΕΔΊΑΣΗΣ]],Παράμετροι[#Headers],0))*INDEX('ΠΑΡΆΜΕΤΡΟΙ ΈΡΓΟΥ'!$B$12:$H$12,1,MATCH(Λεπτομέρειες_έργου[[#Headers],[ΕΙΔΙΚΌΣ ΣΧΕΔΊΑΣΗΣ]],Παράμετροι[#Headers],0))*Λεπτομέρειες_έργου[[#This Row],[ΕΚΤΙΜΩΜΕΝΗ ΕΡΓΑΣΙΑ]]","v":{"v":4000,"d":"4,000 €"}},{"$f":"INDEX(Παράμετροι[],MATCH(Λεπτομέρειες_έργου[[#This Row],[ΤΥΠΟΣ ΕΡΓΟΥ]],Παράμετροι[ΤΥΠΟΣ ΕΡΓΟΥ],0),MATCH(Λεπτομέρειες_έργου[[#Headers],[ΠΡΟΣΩΠΙΚΌ ΕΚΔΗΛΩΣΗΣ]],Παράμετροι[#Headers],0))*INDEX('ΠΑΡΆΜΕΤΡΟΙ ΈΡΓΟΥ'!$B$12:$H$12,1,MATCH(Λεπτομέρειες_έργου[[#Headers],[ΠΡΟΣΩΠΙΚΌ ΕΚΔΗΛΩΣΗΣ]],Παράμετροι[#Headers],0))*Λεπτομέρειες_έργου[[#This Row],[ΕΚΤΙΜΩΜΕΝΗ ΕΡΓΑΣΙΑ]]","v":{"v":0,"d":"0 €"}},{"$f":"INDEX(Παράμετροι[],MATCH(Λεπτομέρειες_έργου[[#This Row],[ΤΥΠΟΣ ΕΡΓΟΥ]],Παράμετροι[ΤΥΠΟΣ ΕΡΓΟΥ],0),MATCH(Λεπτομέρειες_έργου[[#Headers],[ΔΙΟΙΚΗΤΙΚΟ ΠΡΟΣΩΠΙΚΟ]],Παράμετροι[#Headers],0))*INDEX('ΠΑΡΆΜΕΤΡΟΙ ΈΡΓΟΥ'!$B$12:$H$12,1,MATCH(Λεπτομέρειες_έργου[[#Headers],[ΔΙΟΙΚΗΤΙΚΟ ΠΡΟΣΩΠΙΚΟ]],Παράμετροι[#Headers],0))*Λεπτομέρειες_έργου[[#This Row],[ΕΚΤΙΜΩΜΕΝΗ ΕΡΓΑΣΙΑ]]","v":{"v":2400,"d":"2,400 €"}},{"$f":"INDEX(Παράμετροι[],MATCH(Λεπτομέρειες_έργου[[#This Row],[ΤΥΠΟΣ ΕΡΓΟΥ]],Παράμετροι[ΤΥΠΟΣ ΕΡΓΟΥ],0),MATCH(Λεπτομέρειες_έργου[[#Headers],[ΥΠΕΥΘΥΝΟΣ ΛΟΓΑΡΙΑΣΜΟΥ]],Παράμετροι[#Headers],0))*INDEX('ΠΑΡΆΜΕΤΡΟΙ ΈΡΓΟΥ'!$B$12:$H$12,1,MATCH(Λεπτομέρειες_έργου[[#Headers],[ΥΠΕΥΘΥΝΟΣ ΛΟΓΑΡΙΑΣΜΟΥ]],Παράμετροι[#Headers],0))*Λεπτομέρειες_έργου[[#This Row],[ΠΡΑΓΜΑΤΙΚΉ ΕΡΓΑΣΊΑ]]","v":{"v":14040,"d":"14,040 €"}},{"$f":"INDEX(Παράμετροι[],MATCH(Λεπτομέρειες_έργου[[#This Row],[ΤΥΠΟΣ ΕΡΓΟΥ]],Παράμετροι[ΤΥΠΟΣ ΕΡΓΟΥ],0),MATCH(Λεπτομέρειες_έργου[[#Headers],[ΔΙΑΧΕΙΡΙΣΤΗΣ ΕΡΓΟΥ]],Παράμετροι[#Headers],0))*INDEX('ΠΑΡΆΜΕΤΡΟΙ ΈΡΓΟΥ'!$B$12:$H$12,1,MATCH(Λεπτομέρειες_έργου[[#Headers],[ΔΙΑΧΕΙΡΙΣΤΗΣ ΕΡΓΟΥ]],Παράμετροι[#Headers],0))*Λεπτομέρειες_έργου[[#This Row],[ΠΡΑΓΜΑΤΙΚΉ ΕΡΓΑΣΊΑ]]","v":{"v":23400,"d":"23,400 €"}},{"$f":"INDEX(Παράμετροι[],MATCH(Λεπτομέρειες_έργου[[#This Row],[ΤΥΠΟΣ ΕΡΓΟΥ]],Παράμετροι[ΤΥΠΟΣ ΕΡΓΟΥ],0),MATCH(Λεπτομέρειες_έργου[[#Headers],[ΥΠΕΥΘΥΝΟΣ ΣΤΡΑΤΗΓΙΚΉΣ]],Παράμετροι[#Headers],0))*INDEX('ΠΑΡΆΜΕΤΡΟΙ ΈΡΓΟΥ'!$B$12:$H$12,1,MATCH(Λεπτομέρειες_έργου[[#Headers],[ΥΠΕΥΘΥΝΟΣ ΣΤΡΑΤΗΓΙΚΉΣ]],Παράμετροι[#Headers],0))*Λεπτομέρειες_έργου[[#This Row],[ΠΡΑΓΜΑΤΙΚΉ ΕΡΓΑΣΊΑ]]","v":{"v":5850,"d":"5,850 €"}},{"$f":"INDEX(Παράμετροι[],MATCH(Λεπτομέρειες_έργου[[#This Row],[ΤΥΠΟΣ ΕΡΓΟΥ]],Παράμετροι[ΤΥΠΟΣ ΕΡΓΟΥ],0),MATCH(Λεπτομέρειες_έργου[[#Headers],[ΕΙΔΙΚΌΣ ΣΧΕΔΊΑΣΗΣ]],Παράμετροι[#Headers],0))*INDEX('ΠΑΡΆΜΕΤΡΟΙ ΈΡΓΟΥ'!$B$12:$H$12,1,MATCH(Λεπτομέρειες_έργου[[#Headers],[ΕΙΔΙΚΌΣ ΣΧΕΔΊΑΣΗΣ]],Παράμετροι[#Headers],0))*Λεπτομέρειες_έργου[[#This Row],[ΠΡΑΓΜΑΤΙΚΉ ΕΡΓΑΣΊΑ]]","v":{"v":3900,"d":"3,900 €"}},{"$f":"INDEX(Παράμετροι[],MATCH(Λεπτομέρειες_έργου[[#This Row],[ΤΥΠΟΣ ΕΡΓΟΥ]],Παράμετροι[ΤΥΠΟΣ ΕΡΓΟΥ],0),MATCH(Λεπτομέρειες_έργου[[#Headers],[ΠΡΟΣΩΠΙΚΌ ΕΚΔΗΛΩΣΗΣ]],Παράμετροι[#Headers],0))*INDEX('ΠΑΡΆΜΕΤΡΟΙ ΈΡΓΟΥ'!$B$12:$H$12,1,MATCH(Λεπτομέρειες_έργου[[#Headers],[ΠΡΟΣΩΠΙΚΌ ΕΚΔΗΛΩΣΗΣ]],Παράμετροι[#Headers],0))*Λεπτομέρειες_έργου[[#This Row],[ΠΡΑΓΜΑΤΙΚΉ ΕΡΓΑΣΊΑ]]","v":{"v":0,"d":"0 €"}},{"$f":"INDEX(Παράμετροι[],MATCH(Λεπτομέρειες_έργου[[#This Row],[ΤΥΠΟΣ ΕΡΓΟΥ]],Παράμετροι[ΤΥΠΟΣ ΕΡΓΟΥ],0),MATCH(Λεπτομέρειες_έργου[[#Headers],[ΔΙΟΙΚΗΤΙΚΟ ΠΡΟΣΩΠΙΚΟ]],Παράμετροι[#Headers],0))*INDEX('ΠΑΡΆΜΕΤΡΟΙ ΈΡΓΟΥ'!$B$12:$H$12,1,MATCH(Λεπτομέρειες_έργου[[#Headers],[ΔΙΟΙΚΗΤΙΚΟ ΠΡΟΣΩΠΙΚΟ]],Παράμετροι[#Headers],0))*Λεπτομέρειες_έργου[[#This Row],[ΠΡΑΓΜΑΤΙΚΉ ΕΡΓΑΣΊΑ]]","v":{"v":2340,"d":"2,340 €"}}]
[null,"Έργο 3","Σχεδίαση εκδήλωσης",{"$f":"DATE(YEAR(TODAY())+2,7,12)","v":"2024-07-12"},{"$f":"DATE(YEAR(TODAY())+2,9,19)","v":"2024-09-19"},"2025-08-07","2025-10-10",500,500,{"$f":"DAYS360(Λεπτομέρειες_έργου[[#This Row],[ΕΚΤΙΜΩΜΕΝΗ ΕΝΑΡΞΗ]],Λεπτομέρειες_έργου[[#This Row],[ΕΚΤΙΜΏΜΕΝΗ ΛΉΞΗ]],FALSE)","v":67},{"$f":"DAYS360(Λεπτομέρειες_έργου[[#This Row],[ΠΡΑΓΜΑΤΙΚΗ ΕΝΑΡΞΗ]],Λεπτομέρειες_έργου[[#This Row],[ΠΡΑΓΜΑΤΙΚΉ ΛΉΞΗ]],FALSE)","v":63},{"$f":"INDEX(Παράμετροι[],MATCH(Λεπτομέρειες_έργου[[#This Row],[ΤΥΠΟΣ ΕΡΓΟΥ]],Παράμετροι[ΤΥΠΟΣ ΕΡΓΟΥ],0),MATCH(Λεπτομέρειες_έργου[[#Headers],[ΥΠΕΥΘΥΝΟΣ ΛΟΓΑΡΙΑΣΜΟΥ]],Παράμετροι[#Headers],0))*INDEX('ΠΑΡΆΜΕΤΡΟΙ ΈΡΓΟΥ'!$B$12:$H$12,1,MATCH(Λεπτομέρειες_έργου[[#Headers],[ΥΠΕΥΘΥΝΟΣ ΛΟΓΑΡΙΑΣΜΟΥ]],Παράμετροι[#Headers],0))*Λεπτομέρειες_έργου[[#This Row],[ΕΚΤΙΜΩΜΕΝΗ ΕΡΓΑΣΙΑ]]","v":{"v":18000,"d":"18,000 €"}},{"$f":"INDEX(Παράμετροι[],MATCH(Λεπτομέρειες_έργου[[#This Row],[ΤΥΠΟΣ ΕΡΓΟΥ]],Παράμετροι[ΤΥΠΟΣ ΕΡΓΟΥ],0),MATCH(Λεπτομέρειες_έργου[[#Headers],[ΔΙΑΧΕΙΡΙΣΤΗΣ ΕΡΓΟΥ]],Παράμετροι[#Headers],0))*INDEX('ΠΑΡΆΜΕΤΡΟΙ ΈΡΓΟΥ'!$B$12:$H$12,1,MATCH(Λεπτομέρειες_έργου[[#Headers],[ΔΙΑΧΕΙΡΙΣΤΗΣ ΕΡΓΟΥ]],Παράμετροι[#Headers],0))*Λεπτομέρειες_έργου[[#This Row],[ΕΚΤΙΜΩΜΕΝΗ ΕΡΓΑΣΙΑ]]","v":{"v":12000,"d":"12,000 €"}},{"$f":"INDEX(Παράμετροι[],MATCH(Λεπτομέρειες_έργου[[#This Row],[ΤΥΠΟΣ ΕΡΓΟΥ]],Παράμετροι[ΤΥΠΟΣ ΕΡΓΟΥ],0),MATCH(Λεπτομέρειες_έργου[[#Headers],[ΥΠΕΥΘΥΝΟΣ ΣΤΡΑΤΗΓΙΚΉΣ]],Παράμετροι[#Headers],0))*INDEX('ΠΑΡΆΜΕΤΡΟΙ ΈΡΓΟΥ'!$B$12:$H$12,1,MATCH(Λεπτομέρειες_έργου[[#Headers],[ΥΠΕΥΘΥΝΟΣ ΣΤΡΑΤΗΓΙΚΉΣ]],Παράμετροι[#Headers],0))*Λεπτομέρειες_έργου[[#This Row],[ΕΚΤΙΜΩΜΕΝΗ ΕΡΓΑΣΙΑ]]","v":{"v":0,"d":"0 €"}},{"$f":"INDEX(Παράμετροι[],MATCH(Λεπτομέρειες_έργου[[#This Row],[ΤΥΠΟΣ ΕΡΓΟΥ]],Παράμετροι[ΤΥΠΟΣ ΕΡΓΟΥ],0),MATCH(Λεπτομέρειες_έργου[[#Headers],[ΕΙΔΙΚΌΣ ΣΧΕΔΊΑΣΗΣ]],Παράμετροι[#Headers],0))*INDEX('ΠΑΡΆΜΕΤΡΟΙ ΈΡΓΟΥ'!$B$12:$H$12,1,MATCH(Λεπτομέρειες_έργου[[#Headers],[ΕΙΔΙΚΌΣ ΣΧΕΔΊΑΣΗΣ]],Παράμετροι[#Headers],0))*Λεπτομέρειες_έργου[[#This Row],[ΕΚΤΙΜΩΜΕΝΗ ΕΡΓΑΣΙΑ]]","v":{"v":25000,"d":"25,000 €"}},{"$f":"INDEX(Παράμετροι[],MATCH(Λεπτομέρειες_έργου[[#This Row],[ΤΥΠΟΣ ΕΡΓΟΥ]],Παράμετροι[ΤΥΠΟΣ ΕΡΓΟΥ],0),MATCH(Λεπτομέρειες_έργου[[#Headers],[ΠΡΟΣΩΠΙΚΌ ΕΚΔΗΛΩΣΗΣ]],Παράμετροι[#Headers],0))*INDEX('ΠΑΡΆΜΕΤΡΟΙ ΈΡΓΟΥ'!$B$12:$H$12,1,MATCH(Λεπτομέρειες_έργου[[#Headers],[ΠΡΟΣΩΠΙΚΌ ΕΚΔΗΛΩΣΗΣ]],Παράμετροι[#Headers],0))*Λεπτομέρειες_έργου[[#This Row],[ΕΚΤΙΜΩΜΕΝΗ ΕΡΓΑΣΙΑ]]","v":{"v":0,"d":"0 €"}},{"$f":"INDEX(Παράμετροι[],MATCH(Λεπτομέρειες_έργου[[#This Row],[ΤΥΠΟΣ ΕΡΓΟΥ]],Παράμετροι[ΤΥΠΟΣ ΕΡΓΟΥ],0),MATCH(Λεπτομέρειες_έργου[[#Headers],[ΔΙΟΙΚΗΤΙΚΟ ΠΡΟΣΩΠΙΚΟ]],Παράμετροι[#Headers],0))*INDEX('ΠΑΡΆΜΕΤΡΟΙ ΈΡΓΟΥ'!$B$12:$H$12,1,MATCH(Λεπτομέρειες_έργου[[#Headers],[ΔΙΟΙΚΗΤΙΚΟ ΠΡΟΣΩΠΙΚΟ]],Παράμετροι[#Headers],0))*Λεπτομέρειες_έργου[[#This Row],[ΕΚΤΙΜΩΜΕΝΗ ΕΡΓΑΣΙΑ]]","v":{"v":3000,"d":"3,000 €"}},{"$f":"INDEX(Παράμετροι[],MATCH(Λεπτομέρειες_έργου[[#This Row],[ΤΥΠΟΣ ΕΡΓΟΥ]],Παράμετροι[ΤΥΠΟΣ ΕΡΓΟΥ],0),MATCH(Λεπτομέρειες_έργου[[#Headers],[ΥΠΕΥΘΥΝΟΣ ΛΟΓΑΡΙΑΣΜΟΥ]],Παράμετροι[#Headers],0))*INDEX('ΠΑΡΆΜΕΤΡΟΙ ΈΡΓΟΥ'!$B$12:$H$12,1,MATCH(Λεπτομέρειες_έργου[[#Headers],[ΥΠΕΥΘΥΝΟΣ ΛΟΓΑΡΙΑΣΜΟΥ]],Παράμετροι[#Headers],0))*Λεπτομέρειες_έργου[[#This Row],[ΠΡΑΓΜΑΤΙΚΉ ΕΡΓΑΣΊΑ]]","v":{"v":18000,"d":"18,000 €"}},{"$f":"INDEX(Παράμετροι[],MATCH(Λεπτομέρειες_έργου[[#This Row],[ΤΥΠΟΣ ΕΡΓΟΥ]],Παράμετροι[ΤΥΠΟΣ ΕΡΓΟΥ],0),MATCH(Λεπτομέρειες_έργου[[#Headers],[ΔΙΑΧΕΙΡΙΣΤΗΣ ΕΡΓΟΥ]],Παράμετροι[#Headers],0))*INDEX('ΠΑΡΆΜΕΤΡΟΙ ΈΡΓΟΥ'!$B$12:$H$12,1,MATCH(Λεπτομέρειες_έργου[[#Headers],[ΔΙΑΧΕΙΡΙΣΤΗΣ ΕΡΓΟΥ]],Παράμετροι[#Headers],0))*Λεπτομέρειες_έργου[[#This Row],[ΠΡΑΓΜΑΤΙΚΉ ΕΡΓΑΣΊΑ]]","v":{"v":12000,"d":"12,000 €"}},{"$f":"INDEX(Παράμετροι[],MATCH(Λεπτομέρειες_έργου[[#This Row],[ΤΥΠΟΣ ΕΡΓΟΥ]],Παράμετροι[ΤΥΠΟΣ ΕΡΓΟΥ],0),MATCH(Λεπτομέρειες_έργου[[#Headers],[ΥΠΕΥΘΥΝΟΣ ΣΤΡΑΤΗΓΙΚΉΣ]],Παράμετροι[#Headers],0))*INDEX('ΠΑΡΆΜΕΤΡΟΙ ΈΡΓΟΥ'!$B$12:$H$12,1,MATCH(Λεπτομέρειες_έργου[[#Headers],[ΥΠΕΥΘΥΝΟΣ ΣΤΡΑΤΗΓΙΚΉΣ]],Παράμετροι[#Headers],0))*Λεπτομέρειες_έργου[[#This Row],[ΠΡΑΓΜΑΤΙΚΉ ΕΡΓΑΣΊΑ]]","v":{"v":0,"d":"0 €"}},{"$f":"INDEX(Παράμετροι[],MATCH(Λεπτομέρειες_έργου[[#This Row],[ΤΥΠΟΣ ΕΡΓΟΥ]],Παράμετροι[ΤΥΠΟΣ ΕΡΓΟΥ],0),MATCH(Λεπτομέρειες_έργου[[#Headers],[ΕΙΔΙΚΌΣ ΣΧΕΔΊΑΣΗΣ]],Παράμετροι[#Headers],0))*INDEX('ΠΑΡΆΜΕΤΡΟΙ ΈΡΓΟΥ'!$B$12:$H$12,1,MATCH(Λεπτομέρειες_έργου[[#Headers],[ΕΙΔΙΚΌΣ ΣΧΕΔΊΑΣΗΣ]],Παράμετροι[#Headers],0))*Λεπτομέρειες_έργου[[#This Row],[ΠΡΑΓΜΑΤΙΚΉ ΕΡΓΑΣΊΑ]]","v":{"v":25000,"d":"25,000 €"}},{"$f":"INDEX(Παράμετροι[],MATCH(Λεπτομέρειες_έργου[[#This Row],[ΤΥΠΟΣ ΕΡΓΟΥ]],Παράμετροι[ΤΥΠΟΣ ΕΡΓΟΥ],0),MATCH(Λεπτομέρειες_έργου[[#Headers],[ΠΡΟΣΩΠΙΚΌ ΕΚΔΗΛΩΣΗΣ]],Παράμετροι[#Headers],0))*INDEX('ΠΑΡΆΜΕΤΡΟΙ ΈΡΓΟΥ'!$B$12:$H$12,1,MATCH(Λεπτομέρειες_έργου[[#Headers],[ΠΡΟΣΩΠΙΚΌ ΕΚΔΗΛΩΣΗΣ]],Παράμετροι[#Headers],0))*Λεπτομέρειες_έργου[[#This Row],[ΠΡΑΓΜΑΤΙΚΉ ΕΡΓΑΣΊΑ]]","v":{"v":0,"d":"0 €"}},{"$f":"INDEX(Παράμετροι[],MATCH(Λεπτομέρειες_έργου[[#This Row],[ΤΥΠΟΣ ΕΡΓΟΥ]],Παράμετροι[ΤΥΠΟΣ ΕΡΓΟΥ],0),MATCH(Λεπτομέρειες_έργου[[#Headers],[ΔΙΟΙΚΗΤΙΚΟ ΠΡΟΣΩΠΙΚΟ]],Παράμετροι[#Headers],0))*INDEX('ΠΑΡΆΜΕΤΡΟΙ ΈΡΓΟΥ'!$B$12:$H$12,1,MATCH(Λεπτομέρειες_έργου[[#Headers],[ΔΙΟΙΚΗΤΙΚΟ ΠΡΟΣΩΠΙΚΟ]],Παράμετροι[#Headers],0))*Λεπτομέρειες_έργου[[#This Row],[ΠΡΑΓΜΑΤΙΚΉ ΕΡΓΑΣΊΑ]]","v":{"v":3000,"d":"3,000 €"}}]
[null,"Έργο 4","Εφοδιασμός εκδήλωσης",{"$f":"DATE(YEAR(TODAY())+3,7,30)","v":"2025-07-30"},{"$f":"DATE(YEAR(TODAY())+3,9,28)","v":"2025-09-28"},{"$f":"DATE(YEAR(TODAY())+3,9,14)","v":"2025-09-14"},{"$f":"DATE(YEAR(TODAY())+3,11,13)","v":"2025-11-13"},150,145,{"$f":"DAYS360(Λεπτομέρειες_έργου[[#This Row],[ΕΚΤΙΜΩΜΕΝΗ ΕΝΑΡΞΗ]],Λεπτομέρειες_έργου[[#This Row],[ΕΚΤΙΜΏΜΕΝΗ ΛΉΞΗ]],FALSE)","v":58},{"$f":"DAYS360(Λεπτομέρειες_έργου[[#This Row],[ΠΡΑΓΜΑΤΙΚΗ ΕΝΑΡΞΗ]],Λεπτομέρειες_έργου[[#This Row],[ΠΡΑΓΜΑΤΙΚΉ ΛΉΞΗ]],FALSE)","v":59},{"$f":"INDEX(Παράμετροι[],MATCH(Λεπτομέρειες_έργου[[#This Row],[ΤΥΠΟΣ ΕΡΓΟΥ]],Παράμετροι[ΤΥΠΟΣ ΕΡΓΟΥ],0),MATCH(Λεπτομέρειες_έργου[[#Headers],[ΥΠΕΥΘΥΝΟΣ ΛΟΓΑΡΙΑΣΜΟΥ]],Παράμετροι[#Headers],0))*INDEX('ΠΑΡΆΜΕΤΡΟΙ ΈΡΓΟΥ'!$B$12:$H$12,1,MATCH(Λεπτομέρειες_έργου[[#Headers],[ΥΠΕΥΘΥΝΟΣ ΛΟΓΑΡΙΑΣΜΟΥ]],Παράμετροι[#Headers],0))*Λεπτομέρειες_έργου[[#This Row],[ΕΚΤΙΜΩΜΕΝΗ ΕΡΓΑΣΙΑ]]","v":{"v":5400,"d":"5,400 €"}},{"$f":"INDEX(Παράμετροι[],MATCH(Λεπτομέρειες_έργου[[#This Row],[ΤΥΠΟΣ ΕΡΓΟΥ]],Παράμετροι[ΤΥΠΟΣ ΕΡΓΟΥ],0),MATCH(Λεπτομέρειες_έργου[[#Headers],[ΔΙΑΧΕΙΡΙΣΤΗΣ ΕΡΓΟΥ]],Παράμετροι[#Headers],0))*INDEX('ΠΑΡΆΜΕΤΡΟΙ ΈΡΓΟΥ'!$B$12:$H$12,1,MATCH(Λεπτομέρειες_έργου[[#Headers],[ΔΙΑΧΕΙΡΙΣΤΗΣ ΕΡΓΟΥ]],Παράμετροι[#Headers],0))*Λεπτομέρειες_έργου[[#This Row],[ΕΚΤΙΜΩΜΕΝΗ ΕΡΓΑΣΙΑ]]","v":{"v":10800,"d":"10,800 €"}},{"$f":"INDEX(Παράμετροι[],MATCH(Λεπτομέρειες_έργου[[#This Row],[ΤΥΠΟΣ ΕΡΓΟΥ]],Παράμετροι[ΤΥΠΟΣ ΕΡΓΟΥ],0),MATCH(Λεπτομέρειες_έργου[[#Headers],[ΥΠΕΥΘΥΝΟΣ ΣΤΡΑΤΗΓΙΚΉΣ]],Παράμετροι[#Headers],0))*INDEX('ΠΑΡΆΜΕΤΡΟΙ ΈΡΓΟΥ'!$B$12:$H$12,1,MATCH(Λεπτομέρειες_έργου[[#Headers],[ΥΠΕΥΘΥΝΟΣ ΣΤΡΑΤΗΓΙΚΉΣ]],Παράμετροι[#Headers],0))*Λεπτομέρειες_έργου[[#This Row],[ΕΚΤΙΜΩΜΕΝΗ ΕΡΓΑΣΙΑ]]","v":{"v":0,"d":"0 €"}},{"$f":"INDEX(Παράμετροι[],MATCH(Λεπτομέρειες_έργου[[#This Row],[ΤΥΠΟΣ ΕΡΓΟΥ]],Παράμετροι[ΤΥΠΟΣ ΕΡΓΟΥ],0),MATCH(Λεπτομέρειες_έργου[[#Headers],[ΕΙΔΙΚΌΣ ΣΧΕΔΊΑΣΗΣ]],Παράμετροι[#Headers],0))*INDEX('ΠΑΡΆΜΕΤΡΟΙ ΈΡΓΟΥ'!$B$12:$H$12,1,MATCH(Λεπτομέρειες_έργου[[#Headers],[ΕΙΔΙΚΌΣ ΣΧΕΔΊΑΣΗΣ]],Παράμετροι[#Headers],0))*Λεπτομέρειες_έργου[[#This Row],[ΕΚΤΙΜΩΜΕΝΗ ΕΡΓΑΣΙΑ]]","v":{"v":0,"d":"0 €"}},{"$f":"INDEX(Παράμετροι[],MATCH(Λεπτομέρειες_έργου[[#This Row],[ΤΥΠΟΣ ΕΡΓΟΥ]],Παράμετροι[ΤΥΠΟΣ ΕΡΓΟΥ],0),MATCH(Λεπτομέρειες_έργου[[#Headers],[ΠΡΟΣΩΠΙΚΌ ΕΚΔΗΛΩΣΗΣ]],Παράμετροι[#Headers],0))*INDEX('ΠΑΡΆΜΕΤΡΟΙ ΈΡΓΟΥ'!$B$12:$H$12,1,MATCH(Λεπτομέρειες_έργου[[#Headers],[ΠΡΟΣΩΠΙΚΌ ΕΚΔΗΛΩΣΗΣ]],Παράμετροι[#Headers],0))*Λεπτομέρειες_έργου[[#This Row],[ΕΚΤΙΜΩΜΕΝΗ ΕΡΓΑΣΙΑ]]","v":{"v":1200,"d":"1,200 €"}},{"$f":"INDEX(Παράμετροι[],MATCH(Λεπτομέρειες_έργου[[#This Row],[ΤΥΠΟΣ ΕΡΓΟΥ]],Παράμετροι[ΤΥΠΟΣ ΕΡΓΟΥ],0),MATCH(Λεπτομέρειες_έργου[[#Headers],[ΔΙΟΙΚΗΤΙΚΟ ΠΡΟΣΩΠΙΚΟ]],Παράμετροι[#Headers],0))*INDEX('ΠΑΡΆΜΕΤΡΟΙ ΈΡΓΟΥ'!$B$12:$H$12,1,MATCH(Λεπτομέρειες_έργου[[#Headers],[ΔΙΟΙΚΗΤΙΚΟ ΠΡΟΣΩΠΙΚΟ]],Παράμετροι[#Headers],0))*Λεπτομέρειες_έργου[[#This Row],[ΕΚΤΙΜΩΜΕΝΗ ΕΡΓΑΣΙΑ]]","v":{"v":900,"d":"900 €"}},{"$f":"INDEX(Παράμετροι[],MATCH(Λεπτομέρειες_έργου[[#This Row],[ΤΥΠΟΣ ΕΡΓΟΥ]],Παράμετροι[ΤΥΠΟΣ ΕΡΓΟΥ],0),MATCH(Λεπτομέρειες_έργου[[#Headers],[ΥΠΕΥΘΥΝΟΣ ΛΟΓΑΡΙΑΣΜΟΥ]],Παράμετροι[#Headers],0))*INDEX('ΠΑΡΆΜΕΤΡΟΙ ΈΡΓΟΥ'!$B$12:$H$12,1,MATCH(Λεπτομέρειες_έργου[[#Headers],[ΥΠΕΥΘΥΝΟΣ ΛΟΓΑΡΙΑΣΜΟΥ]],Παράμετροι[#Headers],0))*Λεπτομέρειες_έργου[[#This Row],[ΠΡΑΓΜΑΤΙΚΉ ΕΡΓΑΣΊΑ]]","v":{"v":5220,"d":"5,220 €"}},{"$f":"INDEX(Παράμετροι[],MATCH(Λεπτομέρειες_έργου[[#This Row],[ΤΥΠΟΣ ΕΡΓΟΥ]],Παράμετροι[ΤΥΠΟΣ ΕΡΓΟΥ],0),MATCH(Λεπτομέρειες_έργου[[#Headers],[ΔΙΑΧΕΙΡΙΣΤΗΣ ΕΡΓΟΥ]],Παράμετροι[#Headers],0))*INDEX('ΠΑΡΆΜΕΤΡΟΙ ΈΡΓΟΥ'!$B$12:$H$12,1,MATCH(Λεπτομέρειες_έργου[[#Headers],[ΔΙΑΧΕΙΡΙΣΤΗΣ ΕΡΓΟΥ]],Παράμετροι[#Headers],0))*Λεπτομέρειες_έργου[[#This Row],[ΠΡΑΓΜΑΤΙΚΉ ΕΡΓΑΣΊΑ]]","v":{"v":10440,"d":"10,440 €"}},{"$f":"INDEX(Παράμετροι[],MATCH(Λεπτομέρειες_έργου[[#This Row],[ΤΥΠΟΣ ΕΡΓΟΥ]],Παράμετροι[ΤΥΠΟΣ ΕΡΓΟΥ],0),MATCH(Λεπτομέρειες_έργου[[#Headers],[ΥΠΕΥΘΥΝΟΣ ΣΤΡΑΤΗΓΙΚΉΣ]],Παράμετροι[#Headers],0))*INDEX('ΠΑΡΆΜΕΤΡΟΙ ΈΡΓΟΥ'!$B$12:$H$12,1,MATCH(Λεπτομέρειες_έργου[[#Headers],[ΥΠΕΥΘΥΝΟΣ ΣΤΡΑΤΗΓΙΚΉΣ]],Παράμετροι[#Headers],0))*Λεπτομέρειες_έργου[[#This Row],[ΠΡΑΓΜΑΤΙΚΉ ΕΡΓΑΣΊΑ]]","v":{"v":0,"d":"0 €"}},{"$f":"INDEX(Παράμετροι[],MATCH(Λεπτομέρειες_έργου[[#This Row],[ΤΥΠΟΣ ΕΡΓΟΥ]],Παράμετροι[ΤΥΠΟΣ ΕΡΓΟΥ],0),MATCH(Λεπτομέρειες_έργου[[#Headers],[ΕΙΔΙΚΌΣ ΣΧΕΔΊΑΣΗΣ]],Παράμετροι[#Headers],0))*INDEX('ΠΑΡΆΜΕΤΡΟΙ ΈΡΓΟΥ'!$B$12:$H$12,1,MATCH(Λεπτομέρειες_έργου[[#Headers],[ΕΙΔΙΚΌΣ ΣΧΕΔΊΑΣΗΣ]],Παράμετροι[#Headers],0))*Λεπτομέρειες_έργου[[#This Row],[ΠΡΑΓΜΑΤΙΚΉ ΕΡΓΑΣΊΑ]]","v":{"v":0,"d":"0 €"}},{"$f":"INDEX(Παράμετροι[],MATCH(Λεπτομέρειες_έργου[[#This Row],[ΤΥΠΟΣ ΕΡΓΟΥ]],Παράμετροι[ΤΥΠΟΣ ΕΡΓΟΥ],0),MATCH(Λεπτομέρειες_έργου[[#Headers],[ΠΡΟΣΩΠΙΚΌ ΕΚΔΗΛΩΣΗΣ]],Παράμετροι[#Headers],0))*INDEX('ΠΑΡΆΜΕΤΡΟΙ ΈΡΓΟΥ'!$B$12:$H$12,1,MATCH(Λεπτομέρειες_έργου[[#Headers],[ΠΡΟΣΩΠΙΚΌ ΕΚΔΗΛΩΣΗΣ]],Παράμετροι[#Headers],0))*Λεπτομέρειες_έργου[[#This Row],[ΠΡΑΓΜΑΤΙΚΉ ΕΡΓΑΣΊΑ]]","v":{"v":1160,"d":"1,160 €"}},{"$f":"INDEX(Παράμετροι[],MATCH(Λεπτομέρειες_έργου[[#This Row],[ΤΥΠΟΣ ΕΡΓΟΥ]],Παράμετροι[ΤΥΠΟΣ ΕΡΓΟΥ],0),MATCH(Λεπτομέρειες_έργου[[#Headers],[ΔΙΟΙΚΗΤΙΚΟ ΠΡΟΣΩΠΙΚΟ]],Παράμετροι[#Headers],0))*INDEX('ΠΑΡΆΜΕΤΡΟΙ ΈΡΓΟΥ'!$B$12:$H$12,1,MATCH(Λεπτομέρειες_έργου[[#Headers],[ΔΙΟΙΚΗΤΙΚΟ ΠΡΟΣΩΠΙΚΟ]],Παράμετροι[#Headers],0))*Λεπτομέρειες_έργου[[#This Row],[ΠΡΑΓΜΑΤΙΚΉ ΕΡΓΑΣΊΑ]]","v":{"v":870,"d":"870 €"}}]
[null,"Έργο 5","Στελέχωση εκδήλωσης",{"$f":"DATE(YEAR(TODAY())+4,8,11)","v":"2026-08-11"},{"$f":"DATE(YEAR(TODAY())+4,8,21)","v":"2026-08-21"},{"$f":"DATE(YEAR(TODAY())+4,9,14)","v":"2026-09-14"},{"$f":"DATE(YEAR(TODAY())+4,9,25)","v":"2026-09-25"},250,255,{"$f":"DAYS360(Λεπτομέρειες_έργου[[#This Row],[ΕΚΤΙΜΩΜΕΝΗ ΕΝΑΡΞΗ]],Λεπτομέρειες_έργου[[#This Row],[ΕΚΤΙΜΏΜΕΝΗ ΛΉΞΗ]],FALSE)","v":10},{"$f":"DAYS360(Λεπτομέρειες_έργου[[#This Row],[ΠΡΑΓΜΑΤΙΚΗ ΕΝΑΡΞΗ]],Λεπτομέρειες_έργου[[#This Row],[ΠΡΑΓΜΑΤΙΚΉ ΛΉΞΗ]],FALSE)","v":11},{"$f":"INDEX(Παράμετροι[],MATCH(Λεπτομέρειες_έργου[[#This Row],[ΤΥΠΟΣ ΕΡΓΟΥ]],Παράμετροι[ΤΥΠΟΣ ΕΡΓΟΥ],0),MATCH(Λεπτομέρειες_έργου[[#Headers],[ΥΠΕΥΘΥΝΟΣ ΛΟΓΑΡΙΑΣΜΟΥ]],Παράμετροι[#Headers],0))*INDEX('ΠΑΡΆΜΕΤΡΟΙ ΈΡΓΟΥ'!$B$12:$H$12,1,MATCH(Λεπτομέρειες_έργου[[#Headers],[ΥΠΕΥΘΥΝΟΣ ΛΟΓΑΡΙΑΣΜΟΥ]],Παράμετροι[#Headers],0))*Λεπτομέρειες_έργου[[#This Row],[ΕΚΤΙΜΩΜΕΝΗ ΕΡΓΑΣΙΑ]]","v":{"v":9000,"d":"9,000 €"}},{"$f":"INDEX(Παράμετροι[],MATCH(Λεπτομέρειες_έργου[[#This Row],[ΤΥΠΟΣ ΕΡΓΟΥ]],Παράμετροι[ΤΥΠΟΣ ΕΡΓΟΥ],0),MATCH(Λεπτομέρειες_έργου[[#Headers],[ΔΙΑΧΕΙΡΙΣΤΗΣ ΕΡΓΟΥ]],Παράμετροι[#Headers],0))*INDEX('ΠΑΡΆΜΕΤΡΟΙ ΈΡΓΟΥ'!$B$12:$H$12,1,MATCH(Λεπτομέρειες_έργου[[#Headers],[ΔΙΑΧΕΙΡΙΣΤΗΣ ΕΡΓΟΥ]],Παράμετροι[#Headers],0))*Λεπτομέρειες_έργου[[#This Row],[ΕΚΤΙΜΩΜΕΝΗ ΕΡΓΑΣΙΑ]]","v":{"v":3000,"d":"3,000 €"}},{"$f":"INDEX(Παράμετροι[],MATCH(Λεπτομέρειες_έργου[[#This Row],[ΤΥΠΟΣ ΕΡΓΟΥ]],Παράμετροι[ΤΥΠΟΣ ΕΡΓΟΥ],0),MATCH(Λεπτομέρειες_έργου[[#Headers],[ΥΠΕΥΘΥΝΟΣ ΣΤΡΑΤΗΓΙΚΉΣ]],Παράμετροι[#Headers],0))*INDEX('ΠΑΡΆΜΕΤΡΟΙ ΈΡΓΟΥ'!$B$12:$H$12,1,MATCH(Λεπτομέρειες_έργου[[#Headers],[ΥΠΕΥΘΥΝΟΣ ΣΤΡΑΤΗΓΙΚΉΣ]],Παράμετροι[#Headers],0))*Λεπτομέρειες_έργου[[#This Row],[ΕΚΤΙΜΩΜΕΝΗ ΕΡΓΑΣΙΑ]]","v":{"v":0,"d":"0 €"}},{"$f":"INDEX(Παράμετροι[],MATCH(Λεπτομέρειες_έργου[[#This Row],[ΤΥΠΟΣ ΕΡΓΟΥ]],Παράμετροι[ΤΥΠΟΣ ΕΡΓΟΥ],0),MATCH(Λεπτομέρειες_έργου[[#Headers],[ΕΙΔΙΚΌΣ ΣΧΕΔΊΑΣΗΣ]],Παράμετροι[#Headers],0))*INDEX('ΠΑΡΆΜΕΤΡΟΙ ΈΡΓΟΥ'!$B$12:$H$12,1,MATCH(Λεπτομέρειες_έργου[[#Headers],[ΕΙΔΙΚΌΣ ΣΧΕΔΊΑΣΗΣ]],Παράμετροι[#Headers],0))*Λεπτομέρειες_έργου[[#This Row],[ΕΚΤΙΜΩΜΕΝΗ ΕΡΓΑΣΙΑ]]","v":{"v":0,"d":"0 €"}},{"$f":"INDEX(Παράμετροι[],MATCH(Λεπτομέρειες_έργου[[#This Row],[ΤΥΠΟΣ ΕΡΓΟΥ]],Παράμετροι[ΤΥΠΟΣ ΕΡΓΟΥ],0),MATCH(Λεπτομέρειες_έργου[[#Headers],[ΠΡΟΣΩΠΙΚΌ ΕΚΔΗΛΩΣΗΣ]],Παράμετροι[#Headers],0))*INDEX('ΠΑΡΆΜΕΤΡΟΙ ΈΡΓΟΥ'!$B$12:$H$12,1,MATCH(Λεπτομέρειες_έργου[[#Headers],[ΠΡΟΣΩΠΙΚΌ ΕΚΔΗΛΩΣΗΣ]],Παράμετροι[#Headers],0))*Λεπτομέρειες_έργου[[#This Row],[ΕΚΤΙΜΩΜΕΝΗ ΕΡΓΑΣΙΑ]]","v":{"v":12000,"d":"12,000 €"}},{"$f":"INDEX(Παράμετροι[],MATCH(Λεπτομέρειες_έργου[[#This Row],[ΤΥΠΟΣ ΕΡΓΟΥ]],Παράμετροι[ΤΥΠΟΣ ΕΡΓΟΥ],0),MATCH(Λεπτομέρειες_έργου[[#Headers],[ΔΙΟΙΚΗΤΙΚΟ ΠΡΟΣΩΠΙΚΟ]],Παράμετροι[#Headers],0))*INDEX('ΠΑΡΆΜΕΤΡΟΙ ΈΡΓΟΥ'!$B$12:$H$12,1,MATCH(Λεπτομέρειες_έργου[[#Headers],[ΔΙΟΙΚΗΤΙΚΟ ΠΡΟΣΩΠΙΚΟ]],Παράμετροι[#Headers],0))*Λεπτομέρειες_έργου[[#This Row],[ΕΚΤΙΜΩΜΕΝΗ ΕΡΓΑΣΙΑ]]","v":{"v":1500,"d":"1,500 €"}},{"$f":"INDEX(Παράμετροι[],MATCH(Λεπτομέρειες_έργου[[#This Row],[ΤΥΠΟΣ ΕΡΓΟΥ]],Παράμετροι[ΤΥΠΟΣ ΕΡΓΟΥ],0),MATCH(Λεπτομέρειες_έργου[[#Headers],[ΥΠΕΥΘΥΝΟΣ ΛΟΓΑΡΙΑΣΜΟΥ]],Παράμετροι[#Headers],0))*INDEX('ΠΑΡΆΜΕΤΡΟΙ ΈΡΓΟΥ'!$B$12:$H$12,1,MATCH(Λεπτομέρειες_έργου[[#Headers],[ΥΠΕΥΘΥΝΟΣ ΛΟΓΑΡΙΑΣΜΟΥ]],Παράμετροι[#Headers],0))*Λεπτομέρειες_έργου[[#This Row],[ΠΡΑΓΜΑΤΙΚΉ ΕΡΓΑΣΊΑ]]","v":{"v":9180,"d":"9,180 €"}},{"$f":"INDEX(Παράμετροι[],MATCH(Λεπτομέρειες_έργου[[#This Row],[ΤΥΠΟΣ ΕΡΓΟΥ]],Παράμετροι[ΤΥΠΟΣ ΕΡΓΟΥ],0),MATCH(Λεπτομέρειες_έργου[[#Headers],[ΔΙΑΧΕΙΡΙΣΤΗΣ ΕΡΓΟΥ]],Παράμετροι[#Headers],0))*INDEX('ΠΑΡΆΜΕΤΡΟΙ ΈΡΓΟΥ'!$B$12:$H$12,1,MATCH(Λεπτομέρειες_έργου[[#Headers],[ΔΙΑΧΕΙΡΙΣΤΗΣ ΕΡΓΟΥ]],Παράμετροι[#Headers],0))*Λεπτομέρειες_έργου[[#This Row],[ΠΡΑΓΜΑΤΙΚΉ ΕΡΓΑΣΊΑ]]","v":{"v":3060,"d":"3,060 €"}},{"$f":"INDEX(Παράμετροι[],MATCH(Λεπτομέρειες_έργου[[#This Row],[ΤΥΠΟΣ ΕΡΓΟΥ]],Παράμετροι[ΤΥΠΟΣ ΕΡΓΟΥ],0),MATCH(Λεπτομέρειες_έργου[[#Headers],[ΥΠΕΥΘΥΝΟΣ ΣΤΡΑΤΗΓΙΚΉΣ]],Παράμετροι[#Headers],0))*INDEX('ΠΑΡΆΜΕΤΡΟΙ ΈΡΓΟΥ'!$B$12:$H$12,1,MATCH(Λεπτομέρειες_έργου[[#Headers],[ΥΠΕΥΘΥΝΟΣ ΣΤΡΑΤΗΓΙΚΉΣ]],Παράμετροι[#Headers],0))*Λεπτομέρειες_έργου[[#This Row],[ΠΡΑΓΜΑΤΙΚΉ ΕΡΓΑΣΊΑ]]","v":{"v":0,"d":"0 €"}},{"$f":"INDEX(Παράμετροι[],MATCH(Λεπτομέρειες_έργου[[#This Row],[ΤΥΠΟΣ ΕΡΓΟΥ]],Παράμετροι[ΤΥΠΟΣ ΕΡΓΟΥ],0),MATCH(Λεπτομέρειες_έργου[[#Headers],[ΕΙΔΙΚΌΣ ΣΧΕΔΊΑΣΗΣ]],Παράμετροι[#Headers],0))*INDEX('ΠΑΡΆΜΕΤΡΟΙ ΈΡΓΟΥ'!$B$12:$H$12,1,MATCH(Λεπτομέρειες_έργου[[#Headers],[ΕΙΔΙΚΌΣ ΣΧΕΔΊΑΣΗΣ]],Παράμετροι[#Headers],0))*Λεπτομέρειες_έργου[[#This Row],[ΠΡΑΓΜΑΤΙΚΉ ΕΡΓΑΣΊΑ]]","v":{"v":0,"d":"0 €"}},{"$f":"INDEX(Παράμετροι[],MATCH(Λεπτομέρειες_έργου[[#This Row],[ΤΥΠΟΣ ΕΡΓΟΥ]],Παράμετροι[ΤΥΠΟΣ ΕΡΓΟΥ],0),MATCH(Λεπτομέρειες_έργου[[#Headers],[ΠΡΟΣΩΠΙΚΌ ΕΚΔΗΛΩΣΗΣ]],Παράμετροι[#Headers],0))*INDEX('ΠΑΡΆΜΕΤΡΟΙ ΈΡΓΟΥ'!$B$12:$H$12,1,MATCH(Λεπτομέρειες_έργου[[#Headers],[ΠΡΟΣΩΠΙΚΌ ΕΚΔΗΛΩΣΗΣ]],Παράμετροι[#Headers],0))*Λεπτομέρειες_έργου[[#This Row],[ΠΡΑΓΜΑΤΙΚΉ ΕΡΓΑΣΊΑ]]","v":{"v":12240,"d":"12,240 €"}},{"$f":"INDEX(Παράμετροι[],MATCH(Λεπτομέρειες_έργου[[#This Row],[ΤΥΠΟΣ ΕΡΓΟΥ]],Παράμετροι[ΤΥΠΟΣ ΕΡΓΟΥ],0),MATCH(Λεπτομέρειες_έργου[[#Headers],[ΔΙΟΙΚΗΤΙΚΟ ΠΡΟΣΩΠΙΚΟ]],Παράμετροι[#Headers],0))*INDEX('ΠΑΡΆΜΕΤΡΟΙ ΈΡΓΟΥ'!$B$12:$H$12,1,MATCH(Λεπτομέρειες_έργου[[#Headers],[ΔΙΟΙΚΗΤΙΚΟ ΠΡΟΣΩΠΙΚΟ]],Παράμετροι[#Headers],0))*Λεπτομέρειες_έργου[[#This Row],[ΠΡΑΓΜΑΤΙΚΉ ΕΡΓΑΣΊΑ]]","v":{"v":1530,"d":"1,530 €"}}]
[null,"ΆΘΡΟΙΣΜΑ",{"$nulls":5},{"$f":"SUBTOTAL(109,Λεπτομέρειες_έργου[ΕΚΤΙΜΩΜΕΝΗ ΕΡΓΑΣΙΑ])","v":1500},{"$f":"SUBTOTAL(109,Λεπτομέρειες_έργου[ΠΡΑΓΜΑΤΙΚΉ ΕΡΓΑΣΊΑ])","v":1510},{"$f":"SUBTOTAL(109,Λεπτομέρειες_έργου[ΕΚΤΙΜΏΜΕΝΗ ΔΙΆΡΚΕΙΑ])","v":225},{"$f":"SUBTOTAL(109,Λεπτομέρειες_έργου[ΠΡΑΓΜΑΤΙΚΗ ΔΙΑΡΚΕΙΑ])","v":597}]

{"sheet":"ΣΥΝΟΛΑ ΕΡΓΟΥ","index":3,"n_rows":10,"n_cols":14,"rows_kept":10}
[null,{"$f":"'ΠΑΡΆΜΕΤΡΟΙ ΈΡΓΟΥ'!B1","v":"Επωνυμία εταιρείας"}]
[null,"Παρακολούθηση έργου διαχείρισης εκδήλωσης"]
[null,{"$f":"'ΠΑΡΆΜΕΤΡΟΙ ΈΡΓΟΥ'!B3","v":"Επωνυμία εταιρείας Εμπιστευτικο"}]
["Ο Συγκεντρωτικός Πίνακας που ξεκινάει από το κελί στα δεξιά ενημερώνεται αυτόματα.\nΠΛΗΡΟΦΟΡΊΕΣ\nΓια να ανανεώσετε τον Συγκεντρωτικό πίνακα στα δεξιά, επιλέξτε τον (οποιοδήποτε κελί μέσα στον Συγκεντρωτικό Πίνακα), στην καρτέλα ΕΡΓΑΛΕΊΑ ΣΥΓΚΕΝΤΡΩΤΙΚΟΥ ΠΙΝΑΚΑ | ΑΝΆΛΥΣΗ της κορδέλας επιλέξτε \"Ανανέωση\" Ή πατήστε τον συνδυασμό πλήκτρων SHIFT+F10 μέσα σε οποιοδήποτε κελί του Συγκεντρωτικού Πίνακα και, στη συνέχεια, επιλέξτε \"Ανανέωση\".","ΟΝΟΜΑ ΕΡΓΟΥ","ΥΠΕΥΘΥΝΟΣ ΛΟΓΑΡΙΑΣΜΟΥ  ","ΔΙΑΧΕΙΡΙΣΤΗΣ ΕΡΓΟΥ  ","ΥΠΕΥΘΥΝΟΣ ΣΤΡΑΤΗΓΙΚΉΣ  ","ΕΙΔΙΚΌΣ ΣΧΕΔΊΑΣΗΣ  ","ΠΡΟΣΩΠΙΚΌ ΕΚΔΗΛΩΣΗΣ  ","ΔΙΟΙΚΗΤΙΚΟ ΠΡΟΣΩΠΙΚΟ  ","ΥΠΕΥΘΥΝΟΣ ΛΟΓΑΡΙΑΣΜΟΥ   ","ΔΙΑΧΕΙΡΙΣΤΗΣ ΕΡΓΟΥ   ","ΥΠΕΥΘΥΝΟΣ ΣΤΡΑΤΗΓΙΚΉΣ   ","ΕΙΔΙΚΌΣ ΣΧΕΔΊΑΣΗΣ   ","ΠΡΟΣΩΠΙΚΌ ΕΚΔΗΛΩΣΗΣ   ","ΔΙΟΙΚΗΤΙΚΟ ΠΡΟΣΩΠΙΚΟ   "]
[null,"Έργο 1",{"v":7200,"d":"7,200.00 €"},{"v":2400,"d":"2,400.00 €"},{"v":18000,"d":"18,000.00 €"},{"v":0,"d":"0.00 €"},{"v":0,"d":"0.00 €"},{"v":1200,"d":"1,200.00 €"},{"v":7920,"d":"7,920.00 €"},{"v":2640,"d":"2,640.00 €"},{"v":19800,"d":"19,800.00 €"},{"v":0,"d":"0.00 €"},{"v":0,"d":"0.00 €"},{"v":1320,"d":"1,320.00 €"}]
[null,"Έργο 2",{"v":14400,"d":"14,400.00 €"},{"v":24000,"d":"24,000.00 €"},{"v":6000,"d":"6,000.00 €"},{"v":4000,"d":"4,000.00 €"},{"v":0,"d":"0.00 €"},{"v":2400,"d":"2,400.00 €"},{"v":14040,"d":"14,040.00 €"},{"v":23400,"d":"23,400.00 €"},{"v":5850,"d":"5,850.00 €"},{"v":3900,"d":"3,900.00 €"},{"v":0,"d":"0.00 €"},{"v":2340,"d":"2,340.00 €"}]
[null,"Έργο 3",{"v":18000,"d":"18,000.00 €"},{"v":12000,"d":"12,000.00 €"},{"v":0,"d":"0.00 €"},{"v":25000,"d":"25,000.00 €"},{"v":0,"d":"0.00 €"},{"v":3000,"d":"3,000.00 €"},{"v":18000,"d":"18,000.00 €"},{"v":12000,"d":"12,000.00 €"},{"v":0,"d":"0.00 €"},{"v":25000,"d":"25,000.00 €"},{"v":0,"d":"0.00 €"},{"v":3000,"d":"3,000.00 €"}]
[null,"Έργο 4",{"v":5400,"d":"5,400.00 €"},{"v":10800,"d":"10,800.00 €"},{"v":0,"d":"0.00 €"},{"v":0,"d":"0.00 €"},{"v":1200,"d":"1,200.00 €"},{"v":900,"d":"900.00 €"},{"v":5220,"d":"5,220.00 €"},{"v":10440,"d":"10,440.00 €"},{"v":0,"d":"0.00 €"},{"v":0,"d":"0.00 €"},{"v":1160,"d":"1,160.00 €"},{"v":870,"d":"870.00 €"}]
[null,"Έργο 5",{"v":9000,"d":"9,000.00 €"},{"v":3000,"d":"3,000.00 €"},{"v":0,"d":"0.00 €"},{"v":0,"d":"0.00 €"},{"v":12000,"d":"12,000.00 €"},{"v":1500,"d":"1,500.00 €"},{"v":9180,"d":"9,180.00 €"},{"v":3060,"d":"3,060.00 €"},{"v":0,"d":"0.00 €"},{"v":0,"d":"0.00 €"},{"v":12240,"d":"12,240.00 €"},{"v":1530,"d":"1,530.00 €"}]
[null,"Γενικό Άθροισμα",{"v":54000,"d":"54,000.00 €"},{"v":52200,"d":"52,200.00 €"},{"v":24000,"d":"24,000.00 €"},{"v":29000,"d":"29,000.00 €"},{"v":13200,"d":"13,200.00 €"},{"v":9000,"d":"9,000.00 €"},{"v":54360,"d":"54,360.00 €"},{"v":51540,"d":"51,540.00 €"},{"v":25650,"d":"25,650.00 €"},{"v":28900,"d":"28,900.00 €"},{"v":13400,"d":"13,400.00 €"},{"v":9060,"d":"9,060.00 €"}]